[Event "Titled Tuesday Blitz April 12 Late 2022"]
[White "Lewicki, Miroslaw"]
[Black "Van Foreest, Jorden"]
[WhiteFideId "1113380"]
[BlackFideId "1039784"]
[WhiteElo "2283"]
[BlackElo "2609"]
[Result "0-1"]
[Round "01"]
[TimeControl "180+1"]
[Date "2022.04.12"]
[WhiteClock "0:01:57"]
[BlackClock "0:02:32"]

1. g3 {[%clk 0:02:58]}  c5 {[%clk 0:02:45]} 2. Bg2 {[%clk 0:02:59]}  Nc6 {[%clk 0:02:43]} 3. Nf3 {[%clk 0:02:59]}  d5 {[%clk 0:02:43]} 4. O-O {[%clk 0:03:00]}  Nf6 {[%clk 0:02:44]} 5. c3 {[%clk 0:02:56]}  e5 {[%clk 0:02:43]} 6. d4 {[%clk 0:02:56]}  e4 {[%clk 0:02:43]} 7. Ne5 {[%clk 0:02:56]}  Bd6 {[%clk 0:02:44]} 8. Nxc6 {[%clk 0:02:56]}  bxc6 {[%clk 0:02:44]} 9. b3 {[%clk 0:02:52]}  Bf5 {[%clk 0:02:40]} 10. Ba3 {[%clk 0:02:52]}  cxd4 {[%clk 0:02:41]} 11. Bxd6 {[%clk 0:02:51]}  Qxd6 {[%clk 0:02:42]} 12. cxd4 {[%clk 0:02:52]}  h5 {[%clk 0:02:42]} 13. Qc1 {[%clk 0:02:48]}  h4 {[%clk 0:02:42]} 14. Qg5 {[%clk 0:02:47]}  Qe6 {[%clk 0:02:40]} 15. Nc3 {[%clk 0:02:43]}  Rh5 {[%clk 0:02:38]} 16. Qxg7 {[%clk 0:02:40]}  Ke7 {[%clk 0:02:38]} 17. Bf3 {[%clk 0:02:05]}  exf3 {[%clk 0:02:34]} 18. exf3 {[%clk 0:02:05]}  Rg8 {[%clk 0:02:34]} 19. Qxg8 {[%clk 0:02:05]}  Nxg8 {[%clk 0:02:35]} 20. Rae1 {[%clk 0:02:02]}  Be4 {[%clk 0:02:33]} 21. fxe4 {[%clk 0:02:02]}  Qh3 {[%clk 0:02:33]} 22. exd5+ {[%clk 0:02:00]}  Kf8 {[%clk 0:02:34]} 23. Re2 {[%clk 0:01:59]}  cxd5 {[%clk 0:02:32]} 24. Rfe1 {[%clk 0:01:58]}  Nf6 {[%clk 0:02:32]} 25. Nb5 {[%clk 0:01:57]}  Ne4 {[%clk 0:02:32]} 0-1


[Site "https://www.chess.com"]

[Event "Titled Tuesday Blitz April 12 Late 2022"]
[White "Lewtak, Damian"]
[Black "Petrova, Irina"]
[WhiteFideId "1141724"]
[BlackFideId "14124122"]
[WhiteElo "2362"]
[BlackElo "1993"]
[Result "1-0"]
[Round "01"]
[TimeControl "180+1"]
[Date "2022.04.13"]
[WhiteClock "0:00:38"]
[BlackClock "0:00:13"]

1. c4 {[%clk 0:02:59]}  e5 {[%clk 0:02:58]} 2. Nc3 {[%clk 0:02:57]}  Nf6 {[%clk 0:02:57]} 3. g3 {[%clk 0:02:57]}  Bb4 {[%clk 0:02:53]} 4. Bg2 {[%clk 0:02:57]}  Bxc3 {[%clk 0:02:51]} 5. bxc3 {[%clk 0:02:57]}  O-O {[%clk 0:02:50]} 6. e4 {[%clk 0:02:56]}  Nc6 {[%clk 0:02:47]} 7. Ne2 {[%clk 0:02:55]}  d6 {[%clk 0:02:46]} 8. O-O {[%clk 0:02:54]}  Be6 {[%clk 0:02:47]} 9. d3 {[%clk 0:02:53]}  h6 {[%clk 0:02:43]} 10. f4 {[%clk 0:02:53]}  b6 {[%clk 0:02:30]} 11. f5 {[%clk 0:02:52]}  Bd7 {[%clk 0:02:30]} 12. h3 {[%clk 0:02:52]}  Nh7 {[%clk 0:02:20]} 13. g4 {[%clk 0:02:50]}  Ne7 {[%clk 0:01:34]} 14. Be3 {[%clk 0:02:49]}  Bc6 {[%clk 0:01:25]} 15. Qd2 {[%clk 0:02:44]}  f6 {[%clk 0:01:20]} 16. h4 {[%clk 0:02:43]}  Bb7 {[%clk 0:01:19]} 17. Ng3 {[%clk 0:02:43]}  c6 {[%clk 0:01:17]} 18. g5 {[%clk 0:02:39]}  hxg5 {[%clk 0:01:16]} 19. hxg5 {[%clk 0:02:39]}  fxg5 {[%clk 0:01:09]} 20. Bxg5 {[%clk 0:02:38]}  Nxg5 {[%clk 0:01:01]} 21. Qxg5 {[%clk 0:02:38]}  Nc8 {[%clk 0:01:01]} 22. Qg4 {[%clk 0:02:38]}  Qf6 {[%clk 0:00:50]} 23. Nh5 {[%clk 0:02:25]}  Qh6 {[%clk 0:00:49]} 24. Rf3 {[%clk 0:02:26]}  Rf7 {[%clk 0:00:33]} 25. Raf1 {[%clk 0:02:05]}  Ne7 {[%clk 0:00:29]} 26. f6 {[%clk 0:02:06]}  Ng6 {[%clk 0:00:29]} 27. fxg7 {[%clk 0:01:56]}  Nf4 {[%clk 0:00:23]} 28. Nxf4 {[%clk 0:01:53]}  exf4 {[%clk 0:00:23]} 29. Rxf4 {[%clk 0:01:47]}  Rxg7 {[%clk 0:00:22]} 30. Qf3 {[%clk 0:01:46]}  Qg6 {[%clk 0:00:19]} 31. Rf2 {[%clk 0:01:37]}  Re8 {[%clk 0:00:19]} 32. Rf6 {[%clk 0:01:35]}  Qg5 {[%clk 0:00:19]} 33. Rxd6 {[%clk 0:01:25]}  Bc8 {[%clk 0:00:19]} 34. Rf6 {[%clk 0:01:24]}  Bg4 {[%clk 0:00:18]} 35. Rf8+ {[%clk 0:01:20]}  Rxf8 {[%clk 0:00:18]} 36. Qxf8+ {[%clk 0:01:20]}  Kh7 {[%clk 0:00:19]} 37. Qf4 {[%clk 0:01:20]}  Qg6 {[%clk 0:00:17]} 38. Kf1 {[%clk 0:00:48]}  Bh5 {[%clk 0:00:17]} 39. Ke1 {[%clk 0:00:45]}  Kg8 {[%clk 0:00:14]} 40. Qf8+ {[%clk 0:00:44]}  Kh7 {[%clk 0:00:14]} 41. Qf5 {[%clk 0:00:45]}  Bg4 {[%clk 0:00:13]} 42. Qxg6+ {[%clk 0:00:45]}  Kxg6 {[%clk 0:00:14]} 43. Kd2 {[%clk 0:00:44]}  Rh7 {[%clk 0:00:14]} 44. e5 {[%clk 0:00:39]}  Rh2 {[%clk 0:00:13]} 45. Be4+ {[%clk 0:00:38]} 1-0


[Site "https://www.chess.com"]

[Event "Titled Tuesday Blitz April 12 Late 2022"]
[White "Makarian, Rudik"]
[Black "Silvestre, Christian"]
[WhiteFideId "44105681"]
[BlackFideId "30956269"]
[WhiteElo "2388"]
[BlackElo "2431"]
[Result "1-0"]
[Round "01"]
[TimeControl "180+1"]
[Date "2022.04.13"]
[WhiteClock "0:01:07"]
[BlackClock "0:00:08"]

1. b3 {[%clk 0:03:00]}  Nf6 {[%clk 0:02:58]} 2. Bb2 {[%clk 0:03:01]}  e6 {[%clk 0:02:58]} 3. e3 {[%clk 0:03:00]}  c5 {[%clk 0:02:58]} 4. c4 {[%clk 0:03:01]}  d5 {[%clk 0:02:58]} 5. Nf3 {[%clk 0:03:02]}  Nc6 {[%clk 0:02:58]} 6. cxd5 {[%clk 0:03:03]}  exd5 {[%clk 0:02:57]} 7. Bb5 {[%clk 0:03:03]}  Qb6 {[%clk 0:02:48]} 8. Nc3 {[%clk 0:02:57]}  a6 {[%clk 0:02:47]} 9. Bxc6+ {[%clk 0:02:57]}  Qxc6 {[%clk 0:02:47]} 10. O-O {[%clk 0:02:57]}  Bg4 {[%clk 0:02:45]} 11. h3 {[%clk 0:02:56]}  Bh5 {[%clk 0:02:43]} 12. Ne2 {[%clk 0:02:37]}  Bxf3 {[%clk 0:02:41]} 13. gxf3 {[%clk 0:02:37]}  d4 {[%clk 0:02:05]} 14. Kg2 {[%clk 0:02:36]}  d3 {[%clk 0:01:55]} 15. Ng3 {[%clk 0:02:34]}  Be7 {[%clk 0:01:46]} 16. Rc1 {[%clk 0:02:32]}  O-O {[%clk 0:01:41]} 17. Kh2 {[%clk 0:02:31]}  Rfd8 {[%clk 0:01:31]} 18. Rg1 {[%clk 0:02:31]}  Bf8 {[%clk 0:01:30]} 19. f4 {[%clk 0:02:30]}  Ne4 {[%clk 0:01:27]} 20. Nxe4 {[%clk 0:02:24]}  Qxe4 {[%clk 0:01:27]} 21. Qh5 {[%clk 0:02:23]}  g6 {[%clk 0:01:23]} 22. Qh4 {[%clk 0:02:18]}  Be7 {[%clk 0:01:17]} 23. Qh6 {[%clk 0:02:17]}  Bf8 {[%clk 0:01:17]} 24. Qh4 {[%clk 0:02:16]}  Be7 {[%clk 0:01:17]} 25. Bf6 {[%clk 0:02:17]}  Bxf6 {[%clk 0:00:52]} 26. Qxf6 {[%clk 0:02:18]}  Rd5 {[%clk 0:00:46]} 27. Rg5 {[%clk 0:02:05]}  Qf3 {[%clk 0:00:38]} 28. Rcg1 {[%clk 0:01:37]}  Rxg5 {[%clk 0:00:29]} 29. fxg5 {[%clk 0:01:38]}  Qxf6 {[%clk 0:00:27]} 30. gxf6 {[%clk 0:01:39]}  Rc8 {[%clk 0:00:26]} 31. Rc1 {[%clk 0:01:38]}  Rc6 {[%clk 0:00:25]} 32. f4 {[%clk 0:01:34]}  b6 {[%clk 0:00:25]} 33. Rc3 {[%clk 0:01:34]}  Rd6 {[%clk 0:00:24]} 34. Kg3 {[%clk 0:01:33]}  h6 {[%clk 0:00:24]} 35. h4 {[%clk 0:01:32]}  Kh7 {[%clk 0:00:24]} 36. Kf3 {[%clk 0:01:32]}  g5 {[%clk 0:00:21]} 37. hxg5 {[%clk 0:01:32]}  hxg5 {[%clk 0:00:22]} 38. fxg5 {[%clk 0:01:20]}  Kg6 {[%clk 0:00:22]} 39. Kf4 {[%clk 0:01:20]}  Rd5 {[%clk 0:00:21]} 40. e4 {[%clk 0:01:18]}  Rxg5 {[%clk 0:00:20]} 41. Rxd3 {[%clk 0:01:19]}  Rg2 {[%clk 0:00:15]} 42. e5 {[%clk 0:01:18]}  Rf2+ {[%clk 0:00:14]} 43. Ke4 {[%clk 0:01:19]}  Re2+ {[%clk 0:00:14]} 44. Kd5 {[%clk 0:01:18]}  Re1 {[%clk 0:00:08]} 45. Kd6 {[%clk 0:01:10]}  Kf5 {[%clk 0:00:08]} 46. Rf3+ {[%clk 0:01:08]}  Ke4 {[%clk 0:00:08]} 47. Re3+ {[%clk 0:01:08]}  Rxe3 {[%clk 0:00:08]} 48. dxe3 {[%clk 0:01:08]}  Kxe3 {[%clk 0:00:08]} 49. e6 {[%clk 0:01:09]}  fxe6 {[%clk 0:00:07]} 50. f7 {[%clk 0:01:10]}  c4 {[%clk 0:00:07]} 51. f8=Q {[%clk 0:01:11]}  c3 {[%clk 0:00:07]} 52. Qf6 {[%clk 0:01:08]}  c2 {[%clk 0:00:08]} 53. Qc3+ {[%clk 0:01:07]} 1-0


[Site "https://www.chess.com"]

[Event "Titled Tuesday Blitz April 12 Late 2022"]
[White "Maranhao,Jose Renato Ruiz"]
[Black "Khater, Sherif"]
[WhiteFideId "2135175"]
[BlackFideId "2034280"]
[WhiteElo "1970"]
[BlackElo "2563"]
[Result "0-1"]
[Round "01"]
[TimeControl "180+1"]
[Date "2022.04.13"]
[WhiteClock "0:00:02"]
[BlackClock "0:01:59"]

1. e4 {[%clk 0:03:00]}  g6 {[%clk 0:03:00]} 2. d4 {[%clk 0:02:59]}  Bg7 {[%clk 0:03:00]} 3. Nc3 {[%clk 0:03:00]}  d6 {[%clk 0:03:00]} 4. f4 {[%clk 0:03:00]}  a6 {[%clk 0:02:57]} 5. a4 {[%clk 0:02:58]}  Nf6 {[%clk 0:02:57]} 6. Nf3 {[%clk 0:02:58]}  O-O {[%clk 0:02:57]} 7. Be2 {[%clk 0:02:58]}  Nbd7 {[%clk 0:02:54]} 8. O-O {[%clk 0:02:58]}  c5 {[%clk 0:02:55]} 9. e5 {[%clk 0:02:51]}  Ng4 {[%clk 0:02:53]} 10. h3 {[%clk 0:02:44]}  cxd4 {[%clk 0:02:52]} 11. hxg4 {[%clk 0:01:41]}  dxc3 {[%clk 0:02:46]} 12. Rb1 {[%clk 0:01:07]}  dxe5 {[%clk 0:02:44]} 13. Qe1 {[%clk 0:00:46]}  exf4 {[%clk 0:02:41]} 14. Bxf4 {[%clk 0:00:25]}  cxb2 {[%clk 0:02:40]} 15. c3 {[%clk 0:00:22]}  Nc5 {[%clk 0:02:26]} 16. Ne5 {[%clk 0:00:14]}  Nxa4 {[%clk 0:02:16]} 17. Rf3 {[%clk 0:00:07]}  Qd5 {[%clk 0:02:10]} 18. Rh3 {[%clk 0:00:06]}  Bxe5 {[%clk 0:02:07]} 19. Bf3 {[%clk 0:00:04]}  Qc5+ {[%clk 0:02:03]} 20. Be3 {[%clk 0:00:05]}  Qxc3 {[%clk 0:02:03]} 21. Qf2 {[%clk 0:00:02]}  Bg7 {[%clk 0:01:59]} 0-1


[Site "https://www.chess.com"]

[Event "Titled Tuesday Blitz April 12 Late 2022"]
[White "Martic, Ivan"]
[Black "Melkumyan, Hrant"]
[WhiteFideId "929301"]
[BlackFideId "13302485"]
[WhiteElo "2317"]
[BlackElo "2604"]
[Result "0-1"]
[Round "01"]
[TimeControl "180+1"]
[Date "2022.04.12"]
[WhiteClock "0:00:17"]
[BlackClock "0:00:12"]

1. e4 {[%clk 0:02:59]}  c6 {[%clk 0:02:56]} 2. d4 {[%clk 0:02:58]}  d5 {[%clk 0:02:56]} 3. Nd2 {[%clk 0:02:58]}  g6 {[%clk 0:02:53]} 4. Ngf3 {[%clk 0:02:57]}  Bg7 {[%clk 0:02:53]} 5. h3 {[%clk 0:02:54]}  Na6 {[%clk 0:02:43]} 6. c3 {[%clk 0:02:51]}  Nc7 {[%clk 0:02:43]} 7. Bd3 {[%clk 0:02:50]}  Nh6 {[%clk 0:02:39]} 8. O-O {[%clk 0:02:49]}  dxe4 {[%clk 0:02:38]} 9. Nxe4 {[%clk 0:02:49]}  Nf5 {[%clk 0:02:39]} 10. Re1 {[%clk 0:02:47]}  O-O {[%clk 0:02:38]} 11. Bg5 {[%clk 0:02:46]}  h6 {[%clk 0:02:36]} 12. Bf4 {[%clk 0:02:46]}  Nd5 {[%clk 0:02:36]} 13. Bh2 {[%clk 0:02:45]}  b6 {[%clk 0:02:32]} 14. Ne5 {[%clk 0:02:41]}  Bb7 {[%clk 0:02:31]} 15. Qe2 {[%clk 0:02:41]}  e6 {[%clk 0:02:26]} 16. Nc4 {[%clk 0:02:29]}  Ba6 {[%clk 0:02:21]} 17. a4 {[%clk 0:02:27]}  Bxc4 {[%clk 0:02:10]} 18. Bxc4 {[%clk 0:02:28]}  Nf6 {[%clk 0:02:10]} 19. Bb3 {[%clk 0:02:17]}  Nxe4 {[%clk 0:02:07]} 20. Qxe4 {[%clk 0:02:18]}  Qd7 {[%clk 0:02:08]} 21. Rad1 {[%clk 0:02:12]}  Rfe8 {[%clk 0:02:07]} 22. Be5 {[%clk 0:02:10]}  Rad8 {[%clk 0:02:02]} 23. Bxg7 {[%clk 0:02:07]}  Kxg7 {[%clk 0:02:02]} 24. Qe5+ {[%clk 0:02:06]}  Kg8 {[%clk 0:02:00]} 25. Qf4 {[%clk 0:02:00]}  Qd6 {[%clk 0:01:59]} 26. Qf3 {[%clk 0:01:56]}  Kg7 {[%clk 0:01:54]} 27. g3 {[%clk 0:01:55]}  Re7 {[%clk 0:01:52]} 28. Bc2 {[%clk 0:01:54]}  Qd5 {[%clk 0:01:45]} 29. Qf4 {[%clk 0:01:48]}  Nd6 {[%clk 0:01:28]} 30. Re5 {[%clk 0:01:34]}  Qa2 {[%clk 0:01:28]} 31. Qc1 {[%clk 0:01:31]}  Nc4 {[%clk 0:01:27]} 32. Re2 {[%clk 0:01:17]}  Qxb2 {[%clk 0:01:22]} 33. Qf4 {[%clk 0:01:02]}  Qxc3 {[%clk 0:01:22]} 34. Rd3 {[%clk 0:01:02]}  Qa1+ {[%clk 0:01:20]} 35. Kg2 {[%clk 0:01:02]}  Red7 {[%clk 0:01:16]} 36. Rf3 {[%clk 0:01:01]}  Qxd4 {[%clk 0:01:15]} 37. Re4 {[%clk 0:00:57]}  Qd6 {[%clk 0:01:04]} 38. Qf6+ {[%clk 0:00:55]}  Kg8 {[%clk 0:01:02]} 39. Rxc4 {[%clk 0:00:56]}  Qe7 {[%clk 0:00:54]} 40. Qxe7 {[%clk 0:00:53]}  Rxe7 {[%clk 0:00:55]} 41. Rxc6 {[%clk 0:00:53]}  Rd4 {[%clk 0:00:55]} 42. Rfc3 {[%clk 0:00:52]}  Rb4 {[%clk 0:00:51]} 43. Rc8+ {[%clk 0:00:50]}  Kg7 {[%clk 0:00:51]} 44. R8c7 {[%clk 0:00:49]}  Rxc7 {[%clk 0:00:50]} 45. Rxc7 {[%clk 0:00:50]}  a5 {[%clk 0:00:48]} 46. Rb7 {[%clk 0:00:47]}  Kf6 {[%clk 0:00:46]} 47. h4 {[%clk 0:00:47]}  g5 {[%clk 0:00:46]} 48. h5 {[%clk 0:00:45]}  g4 {[%clk 0:00:39]} 49. Rc7 {[%clk 0:00:40]}  b5 {[%clk 0:00:36]} 50. axb5 {[%clk 0:00:37]}  Rxb5 {[%clk 0:00:37]} 51. Rc4 {[%clk 0:00:33]}  Kg5 {[%clk 0:00:34]} 52. Ba4 {[%clk 0:00:19]}  Rb4 {[%clk 0:00:32]} 53. Rc5+ {[%clk 0:00:17]}  f5 {[%clk 0:00:31]} 54. Rxa5 {[%clk 0:00:18]}  Kxh5 {[%clk 0:00:31]} 55. Bd7 {[%clk 0:00:17]}  Rb6 {[%clk 0:00:25]} 56. Re5 {[%clk 0:00:16]}  Kg5 {[%clk 0:00:26]} 57. Rxe6 {[%clk 0:00:16]}  Rb7 {[%clk 0:00:25]} 58. Bc6 {[%clk 0:00:15]}  Rc7 {[%clk 0:00:24]} 59. Ba8 {[%clk 0:00:14]}  h5 {[%clk 0:00:24]} 60. Re5 {[%clk 0:00:14]}  Rf7 {[%clk 0:00:21]} 61. Bb7 {[%clk 0:00:13]}  Rxb7 {[%clk 0:00:21]} 62. Ra5 {[%clk 0:00:12]}  Rf7 {[%clk 0:00:20]} 63. Rb5 {[%clk 0:00:12]}  h4 {[%clk 0:00:20]} 64. gxh4+ {[%clk 0:00:12]}  Kxh4 {[%clk 0:00:21]} 65. Rb8 {[%clk 0:00:11]}  Kg5 {[%clk 0:00:20]} 66. Rg8+ {[%clk 0:00:11]}  Kf4 {[%clk 0:00:20]} 67. Ra8 {[%clk 0:00:11]}  Re7 {[%clk 0:00:21]} 68. Ra4+ {[%clk 0:00:11]}  Re4 {[%clk 0:00:21]} 69. Ra3 {[%clk 0:00:12]}  Rd4 {[%clk 0:00:22]} 70. Rb3 {[%clk 0:00:12]}  Kg5 {[%clk 0:00:20]} 71. Rb5 {[%clk 0:00:13]}  Rd2 {[%clk 0:00:20]} 72. Ra5 {[%clk 0:00:12]}  Rb2 {[%clk 0:00:21]} 73. Rc5 {[%clk 0:00:12]}  Ra2 {[%clk 0:00:21]} 74. Rb5 {[%clk 0:00:12]}  Ra3 {[%clk 0:00:21]} 75. Rc5 {[%clk 0:00:12]}  Rf3 {[%clk 0:00:22]} 76. Rb5 {[%clk 0:00:12]}  Kh4 {[%clk 0:00:23]} 77. Rb4 {[%clk 0:00:12]}  Kh5 {[%clk 0:00:20]} 78. Rb8 {[%clk 0:00:12]}  Ra3 {[%clk 0:00:18]} 79. Rh8+ {[%clk 0:00:12]}  Kg6 {[%clk 0:00:19]} 80. Rb8 {[%clk 0:00:13]}  Kf6 {[%clk 0:00:19]} 81. Rb6+ {[%clk 0:00:13]}  Kg5 {[%clk 0:00:19]} 82. Rb5 {[%clk 0:00:14]}  Ra6 {[%clk 0:00:19]} 83. Rc5 {[%clk 0:00:14]}  Rd6 {[%clk 0:00:19]} 84. Rb5 {[%clk 0:00:14]}  Kf6 {[%clk 0:00:19]} 85. Ra5 {[%clk 0:00:14]}  f4 {[%clk 0:00:19]} 86. Rb5 {[%clk 0:00:14]}  Re6 {[%clk 0:00:19]} 87. Ra5 {[%clk 0:00:15]}  Re5 {[%clk 0:00:19]} 88. Ra6+ {[%clk 0:00:15]}  Kf5 {[%clk 0:00:20]} 89. Ra8 {[%clk 0:00:16]}  Re6 {[%clk 0:00:16]} 90. Rf8+ {[%clk 0:00:16]}  Rf6 {[%clk 0:00:16]} 91. Re8 {[%clk 0:00:16]}  Rh6 {[%clk 0:00:12]} 92. Ra8 {[%clk 0:00:15]}  f3+ {[%clk 0:00:11]} 93. Kg1 {[%clk 0:00:16]}  Re6 {[%clk 0:00:11]} 94. Ra5+ {[%clk 0:00:16]}  Re5 {[%clk 0:00:11]} 95. Ra1 {[%clk 0:00:16]}  Kg5 {[%clk 0:00:10]} 96. Ra4 {[%clk 0:00:16]}  Kh4 {[%clk 0:00:11]} 97. Ra8 {[%clk 0:00:16]}  Re1+ {[%clk 0:00:08]} 98. Kh2 {[%clk 0:00:17]}  Rf1 {[%clk 0:00:06]} 99. Rh8+ {[%clk 0:00:17]}  Kg5 {[%clk 0:00:07]} 100. Rg8+ {[%clk 0:00:17]}  Kf5 {[%clk 0:00:07]} 101. Rf8+ {[%clk 0:00:17]}  Ke4 {[%clk 0:00:07]} 102. Re8+ {[%clk 0:00:18]}  Kd3 {[%clk 0:00:07]} 103. Kg3 {[%clk 0:00:17]}  Rg1+ {[%clk 0:00:08]} 104. Kf4 {[%clk 0:00:18]}  Rg2 {[%clk 0:00:08]} 105. Ra8 {[%clk 0:00:16]}  Ke2 {[%clk 0:00:08]} 106. Ra2+ {[%clk 0:00:16]}  Kf1 {[%clk 0:00:06]} 107. Ke3 {[%clk 0:00:16]}  Rg1 {[%clk 0:00:07]} 108. Ra1+ {[%clk 0:00:16]}  Kg2 {[%clk 0:00:08]} 109. Ra4 {[%clk 0:00:17]}  g3 {[%clk 0:00:08]} 110. Rg4 {[%clk 0:00:16]}  Kh3 {[%clk 0:00:08]} 111. Rg8 {[%clk 0:00:14]}  gxf2 {[%clk 0:00:06]} 112. Rh8+ {[%clk 0:00:13]}  Kg2 {[%clk 0:00:07]} 113. Rg8+ {[%clk 0:00:13]}  Kf1 {[%clk 0:00:06]} 114. Ra8 {[%clk 0:00:13]}  Rg7 {[%clk 0:00:05]} 115. Kxf3 {[%clk 0:00:13]}  Rf7+ {[%clk 0:00:06]} 116. Kg3 {[%clk 0:00:13]}  Kg1 {[%clk 0:00:06]} 117. Ra1+ {[%clk 0:00:11]}  f1=Q {[%clk 0:00:07]} 118. Rxf1+ {[%clk 0:00:11]}  Rxf1 {[%clk 0:00:07]} 119. Kh3 {[%clk 0:00:12]}  Rf2 {[%clk 0:00:08]} 120. Kg4 {[%clk 0:00:12]}  Kf1 {[%clk 0:00:09]} 121. Kg5 {[%clk 0:00:12]}  Ke2 {[%clk 0:00:10]} 122. Kg6 {[%clk 0:00:13]}  Ke3 {[%clk 0:00:11]} 123. Kg7 {[%clk 0:00:14]}  Rf5 {[%clk 0:00:11]} 124. Kg6 {[%clk 0:00:14]}  Kf4 {[%clk 0:00:12]} 125. Kh6 {[%clk 0:00:15]}  Rg5 {[%clk 0:00:12]} 126. Kh7 {[%clk 0:00:15]}  Kf5 {[%clk 0:00:13]} 127. Kh6 {[%clk 0:00:16]}  Kf6 {[%clk 0:00:14]} 128. Kh7 {[%clk 0:00:16]}  Kf7 {[%clk 0:00:12]} 129. Kh8 {[%clk 0:00:17]}  Rh5# {[%clk 0:00:12]} 0-1


[Site "https://www.chess.com"]

[Event "Titled Tuesday Blitz April 12 Late 2022"]
[White "Matlakov, Maxim"]
[Black "Isajevsky, Anton"]
[WhiteFideId "4168003"]
[BlackFideId "4142500"]
[WhiteElo "2669"]
[BlackElo "2510"]
[Result "1-0"]
[Round "01"]
[TimeControl "180+1"]
[Date "2022.04.12"]
[WhiteClock "0:00:09"]
[BlackClock "0:00:02"]

1. d4 {[%clk 0:02:59]}  d5 {[%clk 0:02:59]} 2. Nf3 {[%clk 0:03:00]}  Nf6 {[%clk 0:02:58]} 3. Bf4 {[%clk 0:03:01]}  c5 {[%clk 0:02:54]} 4. e3 {[%clk 0:03:01]}  cxd4 {[%clk 0:02:53]} 5. exd4 {[%clk 0:03:01]}  Nc6 {[%clk 0:02:54]} 6. c3 {[%clk 0:03:01]}  Bf5 {[%clk 0:02:52]} 7. Nbd2 {[%clk 0:03:00]}  e6 {[%clk 0:02:52]} 8. Nh4 {[%clk 0:02:59]}  Bg4 {[%clk 0:02:49]} 9. Qb3 {[%clk 0:02:58]}  Qd7 {[%clk 0:02:45]} 10. h3 {[%clk 0:02:47]}  Bh5 {[%clk 0:02:45]} 11. g4 {[%clk 0:02:47]}  Bg6 {[%clk 0:02:45]} 12. Nxg6 {[%clk 0:02:45]}  hxg6 {[%clk 0:02:45]} 13. Bg2 {[%clk 0:02:45]}  Bd6 {[%clk 0:02:37]} 14. Be3 {[%clk 0:02:35]}  b5 {[%clk 0:02:11]} 15. Qxb5 {[%clk 0:02:18]}  Rb8 {[%clk 0:02:10]} 16. Qd3 {[%clk 0:02:19]}  Rxb2 {[%clk 0:02:09]} 17. Nb3 {[%clk 0:02:19]}  e5 {[%clk 0:01:23]} 18. g5 {[%clk 0:01:40]}  e4 {[%clk 0:01:14]} 19. Qb5 {[%clk 0:01:35]}  Nh5 {[%clk 0:00:51]} 20. Qxd5 {[%clk 0:01:31]}  Ng3 {[%clk 0:00:40]} 21. Rg1 {[%clk 0:01:01]}  Nb4 {[%clk 0:00:27]} 22. Qa8+ {[%clk 0:00:49]}  Ke7 {[%clk 0:00:27]} 23. Qxh8 {[%clk 0:00:30]}  Nc2+ {[%clk 0:00:19]} 24. Kd1 {[%clk 0:00:27]}  Nxa1 {[%clk 0:00:17]} 25. Qxg7 {[%clk 0:00:21]}  Rxa2 {[%clk 0:00:10]} 26. Qf6+ {[%clk 0:00:20]}  Ke8 {[%clk 0:00:11]} 27. Qh8+ {[%clk 0:00:20]}  Bf8 {[%clk 0:00:11]} 28. Qe5+ {[%clk 0:00:20]}  Be7 {[%clk 0:00:11]} 29. fxg3 {[%clk 0:00:16]}  Nxb3 {[%clk 0:00:11]} 30. Bxe4 {[%clk 0:00:16]}  Qa4 {[%clk 0:00:07]} 31. Qb8+ {[%clk 0:00:15]}  Bd8 {[%clk 0:00:07]} 32. Qe5+ {[%clk 0:00:14]}  Be7 {[%clk 0:00:07]} 33. Bc2 {[%clk 0:00:13]}  Rxc2 {[%clk 0:00:06]} 34. Kxc2 {[%clk 0:00:12]}  Nxd4+ {[%clk 0:00:07]} 35. Kd3 {[%clk 0:00:12]}  Nf3 {[%clk 0:00:01]} 36. Qb8+ {[%clk 0:00:10]}  Bd8 {[%clk 0:00:02]} 37. Rb1 {[%clk 0:00:09]} 1-0


[Site "https://www.chess.com"]

[Event "Titled Tuesday Blitz April 12 Late 2022"]
[White "Mickiewicz, Piotr"]
[Black "Ibarra Jerez, Jose Carlos"]
[WhiteFideId "1114891"]
[BlackFideId "2226332"]
[WhiteElo "2458"]
[BlackElo "2816"]
[Result "0-1"]
[Round "01"]
[TimeControl "180+1"]
[Date "2022.04.13"]
[WhiteClock "0:00:26"]
[BlackClock "0:00:55"]

1. e4 {[%clk 0:02:58]}  c5 {[%clk 0:03:00]} 2. Nf3 {[%clk 0:02:56]}  e6 {[%clk 0:03:01]} 3. d4 {[%clk 0:02:56]}  cxd4 {[%clk 0:03:01]} 4. Nxd4 {[%clk 0:02:56]}  Bc5 {[%clk 0:03:02]} 5. Nb3 {[%clk 0:02:53]}  Bb6 {[%clk 0:03:03]} 6. c4 {[%clk 0:02:50]}  Ne7 {[%clk 0:03:03]} 7. Nc3 {[%clk 0:02:49]}  O-O {[%clk 0:03:03]} 8. Bd3 {[%clk 0:02:49]}  f5 {[%clk 0:03:03]} 9. O-O {[%clk 0:02:44]}  f4 {[%clk 0:03:03]} 10. c5 {[%clk 0:02:40]}  Bc7 {[%clk 0:03:03]} 11. Nb5 {[%clk 0:02:19]}  Be5 {[%clk 0:03:03]} 12. Bd2 {[%clk 0:01:52]}  Nbc6 {[%clk 0:03:01]} 13. Bc3 {[%clk 0:01:51]}  Ng6 {[%clk 0:02:57]} 14. Rc1 {[%clk 0:01:44]}  f3 {[%clk 0:02:57]} 15. g3 {[%clk 0:01:43]}  Qg5 {[%clk 0:02:53]} 16. Re1 {[%clk 0:01:41]}  b6 {[%clk 0:02:44]} 17. Bf1 {[%clk 0:01:38]}  bxc5 {[%clk 0:02:33]} 18. Nxc5 {[%clk 0:01:37]}  Bf4 {[%clk 0:02:33]} 19. Nd6 {[%clk 0:00:58]}  Bxc1 {[%clk 0:02:28]} 20. Qxc1 {[%clk 0:00:59]}  Qxc5 {[%clk 0:02:27]} 21. e5 {[%clk 0:00:51]}  Ncxe5 {[%clk 0:02:19]} 22. Ne4 {[%clk 0:00:49]}  Qd5 {[%clk 0:02:11]} 23. Bb4 {[%clk 0:00:44]}  Rf5 {[%clk 0:02:01]} 24. Nd6 {[%clk 0:00:43]}  Nd3 {[%clk 0:01:42]} 25. Bxd3 {[%clk 0:00:40]}  Qxd3 {[%clk 0:01:43]} 26. Nxc8 {[%clk 0:00:38]}  Rd5 {[%clk 0:01:33]} 27. Qc7 {[%clk 0:00:31]}  h6 {[%clk 0:01:20]} 28. Qb7 {[%clk 0:00:30]}  Rxc8 {[%clk 0:01:11]} 29. Qxc8+ {[%clk 0:00:31]}  Kh7 {[%clk 0:01:11]} 30. Qb7 {[%clk 0:00:30]}  Rb5 {[%clk 0:00:59]} 31. Qa6 {[%clk 0:00:27]}  Qf5 {[%clk 0:00:55]} 32. Bc3 {[%clk 0:00:26]}  Qh3 {[%clk 0:00:55]} 0-1


[Site "https://www.chess.com"]